bitfinex-derivatives/quotes_SOLF0:USTF0_20250712
["timestamp","ask_amount","ask_price","bid_price","bid_amount"]
[1752349123947,3.47,160.58,160.56,3.46]
[1752349127546,3.47,160.61,160.57,3.46]
[1752349128551,3.47,160.61,160.58,3.46]
[1752349128953,3.47,160.6,160.58,3.46]
[1752349130853,3.47,160.59,160.58,3.46]
[1752349140858,3.47,160.61,160.58,9.685]
[1752349141054,182.59,160.62,160.59,3.46]
[1752349141356,179.12,160.62,160.6,3.46]
[1752349141557,3.47,160.61,160.6,3.46]
[1752349144153,5.41531191,160.61,160.6,3.46]
[1752349144759,3.47,160.61,160.6,3.46]
[1752349148856,182.66,160.62,160.6,3.46]
[1752349149059,3.54,160.61,160.6,3.46]
[1752349153359,179.12,160.62,160.6,5.40531191]
[1752349153563,182.66,160.62,160.61,3.54]
[1752349155169,179.12,160.62,160.61,3.54]
[1752349155669,182.66,160.62,160.61,3.54]
[1752349161380,179.12,160.62,160.61,3.54]
[1752349161986,182.66,160.62,160.61,3.54]
[1752349162580,179.12,160.62,160.61,3.54]
[1752349162978,182.66,160.62,160.61,3.54]
[1752349168781,179.12,160.62,160.6,3.54]
[1752349168982,3.54,160.61,160.6,3.54]
[1752349169983,5.48531191,160.61,160.6,3.54]
[1752349170584,3.54,160.61,160.6,3.54]
[1752349173579,3.54,160.61,160.6,9.7645]
[1752349173788,3.54,160.63,160.61,3.54]
[1752349173978,3.54,160.62,160.61,3.54]
[1752349178986,3.54,160.62,160.61,10.05900008]
[1752349179184,3.54,160.62,160.61,6.51900008]
[1752349179392,3.54,160.62,160.61,9.97900008]
[1752349180680,3.54,160.62,160.61,16.20310008]
[1752349181184,3.54,160.62,160.61,9.6841]
[1752349182680,3.45,160.64,160.63,3.46]
[1752349182880,178.96,160.65,160.63,5.40462655]
[1752349183188,182.41,160.65,160.64,3.46]
[1752349184592,3.45,160.65,160.64,3.46]
[1752349184990,3.45,160.65,160.62,3.46]
[1752349188595,3.45,160.65,160.62,6.2236]
[1752349188894,3.45,160.65,160.64,3.46]
[1752349193892,3.45,160.65,160.62,8.16812655]
[1752349194093,3.45,160.65,160.63,3.46]
[1752349196600,5.39462655,160.65,160.63,3.46]
[1752349196803,3.45,160.64,160.62,3.46]
[1752349197197,5.39462655,160.64,160.62,3.46]
[1752349197401,3.45,160.63,160.62,3.46]
[1752349201805,3.45,160.62,160.59,5.21692337]
[1752349202004,1.94462655,160.61,160.56,7.16154992]
[1752349202300,5.39462655,160.59,160.58,3.46]
[1752349203700,3.45,160.59,160.58,3.46]
[1752349206099,5.39588719,160.59,160.58,3.46]
[1752349206294,5.39588719,160.59,160.54,5.21692337]
[1752349206499,5.48588719,160.58,160.57,3.66]
[1752349206700,3.54,160.58,160.57,3.66]
[1752349208501,3.54,160.58,160.57,9.8856]
[1752349208698,3.54,160.58,160.57,3.66]
[1752349215908,3.54,160.58,160.57,9.8856]
[1752349217606,3.54,160.58,160.55,3.66]
[1752349217607,5.48588719,160.58,160.55,3.66]
[1752349217808,3.54,160.57,160.55,3.66]
[1752349218203,3.54,160.57,160.56,3.66]
[1752349219204,3.54,160.58,160.57,3.66]
[1752349227413,3.54,160.59,160.58,3.66]
[1752349227617,3.54,160.6,160.58,3.66]
[1752349228118,3.54,160.6,160.59,3.66]
[1752349232113,5.48588719,160.61,160.59,3.66]
[1752349232317,3.54,160.6,160.59,3.66]
[1752349233319,3.54,160.6,160.59,9.8849]
[1752349233521,3.54,160.6,160.59,3.66]
[1752349247837,3.54,160.6,160.56,5.21302449]
[1752349248038,3.53,160.58,160.57,3.36]
[1752349251242,3.53,160.59,160.58,3.36]
[1752349251642,3.53,160.61,160.6,3.36]
[1752349260149,3.53,160.61,160.6,9.5845]
[1752349260342,3.53,160.62,160.61,3.36]
[1752349261145,182.43,160.63,160.61,3.36]
[1752349261340,179.96357205,160.68,160.62,1.94588719]
[1752349261648,3.53,160.66,160.63,3.36]
[1752349263146,3.53,160.66,160.64,3.36]
[1752349270352,1.94588719,160.65,160.64,3.36]
[1752349270556,5.41588719,160.65,160.64,3.36]
[1752349273155,3.47,160.65,160.64,3.36]
[1752349282660,3.47,160.66,160.64,3.36]
[1752349287561,5.41588719,160.66,160.64,3.36]
[1752349287859,1.94588719,160.66,160.64,3.45]
[1752349288161,3.47,160.65,160.64,3.45]
[1752349293266,3.47,160.65,160.64,9.87431841]
[1752349297870,5.38588719,160.66,160.65,3.64]
[1752349298072,5.38588719,160.66,160.65,10.06431841]
[1752349300373,3.44,160.66,160.65,10.06431841]
[1752349307180,3.44,160.66,160.65,10.08841676]
[1752349309287,3.44,160.66,160.65,10.08745427]
[1752349312795,3.44,160.66,160.65,3.64]
[1752349312996,3.44,160.66,160.65,10.08728916]
[1752349313391,3.44,160.66,160.65,10.08710502]
[1752349321703,3.44,160.68,160.65,6.44710502]
[1752349321904,3.44,160.68,160.66,6.44710502]
[1752349322095,3.44,160.68,160.67,10.08710502]
[1752349323707,3.44,160.68,160.67,6.44710502]
[1752349325912,3.44,160.68,160.67,6.44408158]
[1752349330416,5.38398687,160.68,160.67,6.44408158]
[1752349330709,5.38415901,160.68,160.67,6.44408158]
[1752349335113,3.44,160.68,160.67,6.44408158]
[1752349335313,5.38415901,160.68,160.67,6.44408158]
[1752349337515,1.94415901,160.68,160.66,3.51]
[1752349337724,178.76,160.7,160.67,6.44684224]
[1752349337927,178.76,160.7,160.68,6.44684224]
[1752349338219,3.59,160.69,160.63,3.51]
[1752349338822,1.94415901,160.66,160.63,3.51]
[1752349339021,3.59,160.65,160.63,3.51]
[1752349343821,180.64415901,160.66,160.63,3.51]
[1752349344028,3.59,160.64,160.63,3.51]
[1752349345627,180.64415901,160.66,160.63,3.51]
[1752349345928,3.59,160.65,160.63,3.51]
[1752349348128,3.59,160.65,160.63,9.7333]
[1752349348327,3.59,160.65,160.64,3.51]
[1752349350126,182.29,160.66,160.64,9.7327]
[1752349350326,182.29,160.66,160.65,3.51]
[1752349358131,178.7,160.66,160.65,3.51]
[1752349358325,178.7,160.66,160.65,9.7325]
[1752349359129,3.4,160.68,160.66,3.57]
[1752349360632,5.34363825,160.68,160.66,3.57]
[1752349361538,3.4,160.67,160.64,8.16643825]
[1752349362037,3.4,160.67,160.65,3.57]
[1752349363136,5.34363825,160.67,160.65,3.57]
[1752349363342,1.94363825,160.67,160.65,3.57]
[1752349363641,3.4,160.66,160.65,3.57]
[1752349370662,5.34363825,160.66,160.65,3.57]
[1752349371659,3.4,160.66,160.65,3.57]
[1752349376961,5.34363825,160.66,160.63,3.57]
[1752349377164,3.4,160.64,160.63,3.57]
[1752349378763,5.34363825,160.64,160.63,3.57]
[1752349380762,3.4,160.64,160.63,3.57]
[1752349382763,3.4,160.63,160.61,8.79069752]
[1752349382966,5.34363825,160.62,160.61,8.79069752]
[1752349383666,11.56733825,160.62,160.61,8.79069752]
[1752349384167,11.56733825,160.62,160.61,3.57]
[1752349390171,9.7942,160.61,160.6,3.58]
[1752349390977,11.73783825,160.61,160.6,3.58]
[1752349391271,3.57,160.61,160.6,3.58]
[1752349393474,9.7941,160.61,160.6,3.58]
[1752349394871,8.16773825,160.61,160.58,6.2251]
[1752349395080,6.2245,160.6,160.59,3.58]
[1752349395278,9.7945,160.6,160.59,3.58]
[1752349395479,3.57,160.6,160.59,3.58]
[1752349396679,3.57,160.6,160.59,9.8049]
[1752349396881,3.57,160.61,160.6,3.58]
[1752349398180,9.7941,160.61,160.6,3.58]
[1752349402077,11.73773825,160.61,160.6,3.58]
[1752349406287,3.57,160.58,160.57,6.2255]
[1752349406988,3.57,160.58,160.57,9.8055]
[1752349415498,11.73853825,160.59,160.57,9.8055]
[1752349415692,11.73853825,160.59,160.58,3.41]
[1752349417494,9.7949,160.59,160.58,3.41]
[1752349418296,11.73853825,160.59,160.58,3.41]
[1752349424702,6.2258,160.57,160.56,3.41]
[1752349425000,1.94363825,160.57,160.55,3.41]
[1752349425201,1.94363825,160.56,160.55,3.41]
[1752349425400,5.57363825,160.56,160.55,3.41]
[1752349425595,11.79963825,160.56,160.55,3.41]
[1752349426104,3.63,160.56,160.55,3.41]
[1752349430603,5.57363825,160.59,160.55,1.94363825]
[1752349430810,3.63,160.59,160.57,3.41]
[1752349431106,11.79833825,160.6,160.58,3.41]
[1752349431405,3.63,160.59,160.58,3.41]
[1752349432109,3.63,160.6,160.58,3.41]
[1752349432509,9.8543,160.61,160.58,3.41]
[1752349432705,9.8543,160.61,160.58,5.35363825]
[1752349432913,9.8543,160.61,160.58,1.94363825]
[1752349433110,3.63,160.61,160.6,3.41]
[1752349434707,9.8541,160.61,160.6,3.41]
[1752349437613,6.2241,160.61,160.6,3.41]
[1752349437913,3.63,160.61,160.6,3.41]
[1752349439815,9.8541,160.61,160.6,3.41]
[1752349444322,11.79773825,160.61,160.6,3.41]
[1752349446015,9.8541,160.61,160.6,3.41]
[1752349455623,3.63,160.61,160.6,3.41]
[1752349456420,178.66,160.63,160.61,3.41]
[1752349457123,182.26,160.63,160.61,9.6338]
[1752349457325,182.26,160.63,160.62,3.41]
[1752349458025,188.4833,160.63,160.62,3.41]
[1752349460930,190.42693825,160.63,160.62,3.41]
[1752349465030,188.4833,160.63,160.62,3.41]
[1752349467432,182.26,160.63,160.62,3.41]
[1752349469134,188.4833,160.63,160.62,3.41]
[1752349479142,182.26,160.63,160.62,3.41]
[1752349482336,188.4833,160.63,160.62,3.41]
[1752349483844,182.26,160.63,160.62,3.41]
[1752349484236,182.26,160.63,160.62,9.6337]
[1752349486445,182.26,160.63,160.62,3.41]
[1752349487851,3.46,160.65,160.62,1.94363825]
[1752349488148,3.46,160.65,160.64,3.46]
[1752349488343,3.46,160.66,160.64,5.40363825]
[1752349488651,181.96,160.67,160.65,3.46]
[1752349488941,178.5,160.67,160.66,5.40363825]
[1752349489150,3.46,160.69,160.66,8.16553825]
[1752349489345,3.46,160.69,160.67,3.46]
[1752349490638,3.46,160.69,160.67,9.6817]
[1752349490834,3.46,160.69,160.68,3.46]
[1752349493746,3.46,160.69,160.65,6.2224]
[1752349493942,3.46,160.67,160.66,3.46]
[1752349496348,3.46,160.66,160.65,3.46]
[1752349496548,3.46,160.66,160.64,9.6827]
[1752349496745,3.46,160.64,160.61,5.22274616]
[1752349496941,3.46,160.64,160.6,1.94363825]
[1752349496942,5.40363825,160.63,160.6,3.46]
[1752349497246,5.40363825,160.63,160.59,5.22274616]
[1752349497247,3.46,160.64,160.59,9.6846]
[1752349497448,3.46,160.6,160.59,6.2246]
[1752349497848,3.46,160.6,160.59,9.6846]
[1752349500450,5.40363825,160.62,160.61,3.46]
[1752349502153,3.46,160.62,160.61,9.6841]
[1752349502341,3.46,160.62,160.6,3.46]
[1752349502546,3.46,160.62,160.6,9.6844]
[1752349502955,5.40363825,160.62,160.6,9.6844]
[1752349503653,3.46,160.61,160.6,9.6844]
[1752349503850,3.46,160.61,160.6,16.13935602]
[1752349504755,3.46,160.61,160.6,16.14023622]
[1752349506457,3.46,160.61,160.6,16.1397492]
[1752349514366,3.4,160.62,160.61,3.5]
[1752349514563,3.4,160.62,160.61,9.9553492]
[1752349514756,3.4,160.62,160.61,16.1794492]
[1752349516063,3.4,160.63,160.62,6.2236]
[1752349516367,1.94363825,160.65,160.62,12.6789492]
[1752349516561,3.4,160.63,160.62,9.7236]
[1752349516762,3.4,160.63,160.62,9.95242944]
[1752349521870,3.4,160.63,160.62,3.5]
[1752349522071,3.4,160.63,160.62,9.95271996]
[1752349522366,3.4,160.63,160.62,9.95273453]
[1752349524666,3.4,160.63,160.62,16.17643453]
[1752349525671,3.4,160.63,160.62,9.95273453]
[1752349526973,1.94363825,160.65,160.62,9.95273453]
[1752349527176,3.4,160.65,160.64,3.5]
[1752349527378,3.4,160.65,160.64,9.95273453]
[1752349534183,1.94363825,160.67,160.64,16.17563453]
[1752349534390,3.4,160.67,160.66,3.5]
[1752349534584,3.4,160.67,160.66,9.95273453]
[1752349534985,181.84,160.68,160.66,8.39637278]
[1752349535186,181.84,160.68,160.67,9.95273453]
[1752349535487,181.84,160.68,160.67,18.11817278]
[1752349535684,178.44,160.68,160.67,18.11817278]
[1752349536083,181.94,160.68,160.67,18.11817278]
[1752349536291,181.94,160.68,160.67,9.95273453]
[1752349538988,183.88363825,160.68,160.67,6.45273453]
[1752349541895,183.88363825,160.68,160.67,6.4499443]
[1752349544195,183.88363825,160.68,160.67,6.45004716]
[1752349554697,181.94,160.68,160.67,6.45004716]
[1752349554897,183.88363825,160.68,160.67,6.45004716]
[1752349555402,183.88363825,160.68,160.67,9.81004716]
[1752349556201,1.94363825,160.7,160.68,3.36]
[1752349556402,5.44363825,160.7,160.69,9.81004716]
[1752349556704,183.86363825,160.7,160.69,9.81004716]
[1752349559206,181.92,160.7,160.69,9.81004716]
[1752349559404,183.86363825,160.7,160.69,9.81004716]
[1752349560304,181.92,160.7,160.69,9.81004716]
[1752349560506,183.86363825,160.7,160.69,9.81004716]
[1752349565013,183.86363825,160.7,160.69,6.45004716]
[1752349569911,181.92,160.7,160.69,6.45004716]
[1752349570214,183.86363825,160.7,160.69,6.45004716]
[1752349570515,180.36363825,160.7,160.63,3.47]
[1752349570715,5.55363825,160.65,160.63,3.47]
[1752349570914,183.95363825,160.65,160.63,3.47]
[1752349571416,178.4,160.65,160.63,3.47]
[1752349572418,182.01,160.65,160.63,3.47]
[1752349574923,3.61,160.64,160.61,13.39038441]
[1752349575118,5.55363825,160.64,160.61,6.224]
[1752349575318,3.61,160.63,160.61,6.224]
[1752349575515,3.61,160.63,160.62,3.47]
[1752349577019,5.55363825,160.63,160.62,3.47]
[1752349579020,11.77693825,160.63,160.62,3.47]
[1752349580516,1.94363825,160.63,160.6,3.47]
[1752349580717,5.55363825,160.61,160.6,3.47]
[1752349582027,11.77773825,160.61,160.6,3.47]
[1752349582221,5.55363825,160.61,160.6,3.47]
[1752349586127,5.55363825,160.61,160.6,9.6945]
[1752349587024,3.61,160.61,160.6,9.6945]
[1752349588129,6.223,160.64,160.61,6.2239]
[1752349588324,5.55363825,160.62,160.61,9.6939]
[1752349589422,3.61,160.62,160.61,9.6939]
[1752349589623,1.94363825,160.65,160.61,3.47]
[1752349589931,3.61,160.63,160.61,3.47]
[1752349590522,3.61,160.63,160.62,6.2235]
[1752349590722,3.61,160.63,160.62,9.6935]
[1752349591324,1.94363825,160.63,160.62,6.2235]
[1752349591523,3.61,160.62,160.56,3.47]
[1752349591723,178.44,160.66,160.53,3.47]
[1752349591724,3.61,160.56,160.53,3.47]
[1752349591921,1.94363825,160.54,160.53,3.47]
[1752349592122,5.55363825,160.54,160.53,3.47]
[1752349592927,3.61,160.54,160.53,3.47]
[1752349593127,3.61,160.54,160.53,9.6972]
[1752349593516,3.04276255,160.55,160.53,9.6972]
[1752349593717,3.61,160.55,160.54,3.47]
[1752349595827,3.61,160.55,160.54,9.6968]
[1752349596024,182.05,160.56,160.5,3.42]
[1752349596826,182.05,160.56,160.52,3.42]
[1752349597030,178.66,160.56,160.52,3.42]
[1752349597527,178.66,160.56,160.54,3.42]
[1752349597930,178.66,160.56,160.55,6.2264]
[1752349598126,178.66,160.56,160.55,9.6464]
[1752349600036,3.39,160.63,160.55,12.67976671]
[1752349600331,182.35,160.65,160.61,3.42]
[1752349600528,3.39,160.64,160.62,6.2235]
[1752349600728,3.39,160.64,160.63,3.42]
[1752349603037,3.03828501,160.72,160.65,3.42]
[1752349603038,3.39,160.68,160.65,3.42]
[1752349603437,3.39,160.68,160.67,3.42]
[1752349606131,3.39,160.68,160.64,3.03790666]
[1752349606528,179.4,160.69,160.64,3.03790666]
[1752349606735,179.4,160.69,160.65,3.42]
[1752349606939,179.4,160.69,160.66,3.03790666]
[1752349607128,179.4,160.69,160.68,6.2214]
[1752349607437,179.4,160.69,160.68,9.6414]
[1752349608439,179.4,160.69,160.62,5.22274616]
[1752349608440,3.39,160.68,160.63,3.42]
[1752349608635,6.42790666,160.68,160.62,3.42]
[1752349608836,3.39,160.67,160.58,3.03790666]
[1752349609038,3.39,160.67,160.63,3.42]
[1752349609236,3.03790666,160.68,160.63,3.42]
[1752349609237,9.6129,160.64,160.63,3.42]
[1752349609433,189.2529,160.64,160.63,3.42]
[1752349614443,183.03,160.64,160.63,3.42]
[1752349614639,183.03,160.64,160.56,3.03790666]
[1752349614640,3.39,160.72,160.64,3.42]
[1752349614844,3.39,160.7,160.64,6.45790666]
[1752349615039,6.2208,160.7,160.67,6.2217]
[1752349615244,3.39,160.69,160.68,3.42]
[1752349617049,3.39,160.69,160.68,9.6414]
[1752349617250,185.9604,160.71,160.68,9.6414]
[1752349617457,1.08318419,160.74,160.69,3.42]
[1752349617645,3.39,160.71,160.69,3.42]
[1752349618341,3.39,160.71,160.7,6.2206]
[1752349618547,3.39,160.71,160.7,9.6406]
[1752349619847,3.39,160.72,160.71,3.42]
[1752349620743,9.6098,160.72,160.71,3.42]
[1752349620943,3.39,160.72,160.71,3.42]
[1752349624455,4.47298193,160.76,160.7,3.03790666]
[1752349624756,3.39,160.76,160.73,3.42]
[1752349625355,180.26,160.78,160.73,3.42]
[1752349625356,3.39,160.75,160.73,3.42]
[1752349625861,3.39,160.75,160.72,3.03790666]
[1752349625862,3.32,160.77,160.69,3.03402182]
[1752349626057,3.32,160.77,160.7,3.32]
[1752349626260,3.32,160.74,160.72,3.32]
[1752349626456,3.32,160.73,160.72,3.32]
[1752349628962,9.5394,160.73,160.7,6.2205]
[1752349629154,3.32,160.72,160.71,3.32]
[1752349629961,3.32,160.72,160.66,3.03506071]
[1752349630161,3.32,160.72,160.67,3.32]
[1752349631066,9.5401,160.72,160.69,6.2207]
[1752349631265,3.32,160.71,160.7,3.32]
[1752349634268,6.2202,160.71,160.68,6.2213]
[1752349634465,3.32,160.7,160.69,3.32]
[1752349635566,3.32,160.7,160.68,9.5413]
[1752349636270,3.32,160.7,160.68,6.2213]
[1752349636471,3.32,160.7,160.69,3.32]
[1752349637470,6.35801169,160.7,160.64,3.32]
[1752349637771,3.32,160.65,160.62,3.32]
[1752349637970,6.2233,160.63,160.62,3.32]
[1752349638170,9.26312714,160.63,160.61,3.32]
[1752349638372,3.32,160.62,160.61,3.32]
[1752349638867,3.03896398,160.69,160.61,3.32]
[1752349639061,6.2219,160.67,160.61,3.32]
[1752349639265,6.2219,160.67,160.64,6.2229]
[1752349639468,9.5419,160.67,160.65,3.32]
[1752349640172,180.54,160.71,160.65,3.32]
[1752349640371,3.32,160.7,160.65,3.32]
[1752349641068,6.2216,160.68,160.65,3.32]
[1752349641276,9.5416,160.68,160.66,3.32]
[1752349641767,6.2211,160.69,160.66,6.2221]
[1752349641965,180.54,160.78,160.68,3.32]
[1752349642171,3.03896398,160.77,160.69,3.03896398]
[1752349642477,3.32,160.76,160.71,3.32]
[1752349642667,3.32,160.76,160.72,3.32]
[1752349642862,6.2193,160.74,160.72,3.32]
[1752349643170,3.32,160.73,160.72,3.32]
[1752349643767,9.5394,160.73,160.72,3.32]
[1752349644468,3.32,160.73,160.72,3.32]
[1752349644972,3.03896398,160.77,160.72,3.32]
[1752349645172,3.32,160.76,160.72,3.32]
[1752349645376,3.32,160.74,160.73,3.32]
[1752349645973,9.5391,160.74,160.73,3.32]
[1752349647173,6.2195,160.73,160.7,3.32]
[1752349647476,3.32,160.72,160.7,3.32]
[1752349647871,3.32,160.72,160.67,3.03896398]
[1752349647872,3.32,160.72,160.68,6.2213]
[1752349648075,6.2195,160.73,160.71,3.32]
[1752349648474,3.32,160.72,160.71,3.32]
[1752349650571,6.2195,160.73,160.71,3.32]
[1752349650876,9.5395,160.73,160.72,3.32]
[1752349652378,3.32,160.73,160.72,3.32]
[1752349653473,9.5394,160.73,160.72,3.32]
[1752349654183,6.2194,160.73,160.69,6.2209]
[1752349654379,3.32,160.72,160.71,3.32]
[1752349656184,3.32,160.72,160.68,6.2213]
[1752349656384,3.32,160.72,160.69,3.47]
[1752349656885,3.32,160.72,160.7,3.47]
[1752349658986,6.2202,160.71,160.67,6.2216]
[1752349659185,6.2202,160.71,160.68,3.47]
[1752349659186,3.45,160.7,160.68,3.47]
[1752349659385,3.45,160.7,160.69,3.47]
[1752349659784,6.2206,160.7,160.67,3.47]
[1752349659987,3.45,160.69,160.67,3.47]
[1752349660187,3.45,160.68,160.66,6.222]
[1752349660588,3.45,160.68,160.67,3.47]
[1752349663986,6.2208,160.7,160.67,9.6918]
[1752349664187,3.45,160.69,160.68,3.47]
[1752349667286,3.45,160.69,160.65,3.47]
[1752349667491,180.68,160.71,160.59,10.44663966]
[1752349667492,3.45,160.66,160.62,3.47]
[1752349667688,3.45,160.63,160.58,3.47]
[1752349667889,6.2239,160.62,160.58,9.695]
[1752349668088,3.45,160.6,160.59,3.47]
[1752349670091,3.45,160.6,160.59,9.6949]
[1752349670497,3.03896398,160.62,160.59,9.6949]
[1752349670498,3.45,160.61,160.6,3.47]
[1752349671487,187.0034,160.63,160.59,6.2249]
[1752349671488,3.45,160.68,160.59,3.03896398]
[1752349671694,3.45,160.68,160.61,6.50896398]
[1752349671883,3.45,160.68,160.62,3.47]
[1752349672087,3.45,160.68,160.66,3.47]
[1752349672793,3.45,160.67,160.64,6.2228]
[1752349673094,3.45,160.67,160.65,3.47]
[1752349673293,3.45,160.66,160.65,9.6925]
[1752349673993,3.45,160.66,160.65,3.47]
[1752349674603,184.69,160.71,160.65,3.03896398]
[1752349674793,184.69,160.71,160.68,6.2213]
[1752349675092,184.69,160.71,160.7,3.47]
[1752349678693,3.45,160.74,160.7,3.47]
[1752349678997,184.81,160.73,160.7,3.47]
[1752349679597,184.81,160.73,160.7,9.6903]
[1752349679790,184.81,160.73,160.7,6.2203]
[1752349679994,184.81,160.73,160.71,3.47]
[1752349680190,184.81,160.73,160.7,6.2203]
[1752349680395,184.81,160.73,160.72,3.47]
[1752349682103,3.45,160.72,160.63,5.19218684]
[1752349682299,3.45,160.66,160.62,5.19218684]
[1752349682501,3.45,160.64,160.61,6.2241]
[1752349682797,187.7228,160.65,160.61,6.2241]
[1752349682798,3.45,160.63,160.61,6.2241]
[1752349684095,3.45,160.63,160.62,3.47]
[1752349687202,3.64,160.62,160.61,9.6741]
[1752349687598,3.64,160.77,160.62,3.45]
[1752349687805,3.64,160.73,160.65,3.45]
[1752349688105,3.03835357,160.72,160.66,9.6719]
[1752349688306,3.64,160.69,160.67,3.45]
[1752349688504,3.64,160.68,160.67,3.45]
[1752349689204,3.64,160.68,160.67,9.6718]
[1752349689809,3.64,160.68,160.67,3.45]
[1752349690806,3.64,160.68,160.67,9.89811235]
[1752349691806,3.64,160.74,160.68,3.45]
[1752349692007,3.64,160.73,160.69,9.89811235]
[1752349692203,9.8596,160.73,160.7,6.44811235]
[1752349692507,3.64,160.72,160.71,6.44811235]
[1752349693110,9.8598,160.72,160.71,6.44811235]
[1752349693612,3.64,160.71,160.64,3.03835357]
[1752349693809,3.64,160.71,160.68,3.45]
[1752349694009,6.2203,160.71,160.68,3.45]
[1752349694207,3.64,160.7,160.68,3.45]
[1752349695513,9.8606,160.7,160.68,3.45]
[1752349695713,3.64,160.69,160.68,3.45]
[1752349696011,3.64,160.69,160.67,9.6716]
[1752349696311,3.64,160.69,160.66,9.6719]
[1752349696511,3.64,160.68,160.67,3.45]
[1752349697813,3.64,160.68,160.67,9.6718]
[1752349701717,3.64,160.7,160.68,6.2213]
[1752349701920,6.22,160.72,160.68,9.6713]
[1752349702215,3.64,160.69,160.68,9.6713]
[1752349706924,181.6,160.71,160.7,3.45]
[1752349707117,185.24,160.71,160.7,3.45]
[1752349709027,181.6,160.71,160.69,6.2207]
[1752349709229,181.6,160.71,160.69,9.6707]
[1752349709230,3.64,160.7,160.69,9.6707]
[1752349710523,3.64,160.7,160.65,3.45]
[1752349710923,3.03576653,160.69,160.64,3.45]
[1752349711225,3.64,160.68,160.65,3.45]
[1752349711428,3.64,160.68,160.66,3.45]
[1752349712328,3.64,160.68,160.64,3.45]
[1752349712530,3.64,160.67,160.65,3.45]
[1752349713029,3.64,160.67,160.65,9.6722]
[1752349714132,3.64,160.67,160.66,6.2222]
[1752349714432,3.64,160.67,160.65,3.45]
[1752349714631,3.64,160.66,160.65,3.45]
[1752349715231,3.64,160.66,160.65,9.6724]
[1752349726036,3.64,160.66,160.65,6.2224]
[1752349726430,3.64,160.66,160.65,9.5524]
[1752349736236,3.64,160.66,160.63,5.21726413]
[1752349736539,3.66,160.64,160.61,3.33]
[1752349736741,3.66,160.63,160.62,6.2235]
[1752349739048,3.66,160.63,160.61,6.224]
[1752349739540,3.66,160.62,160.6,6.2242]
[1752349744351,3.66,160.62,160.59,9.5547]
[1752349745247,3.66,160.62,160.59,3.33]
[1752349745647,3.66,160.62,160.6,6.2243]
[1752349745842,3.66,160.62,160.6,9.7243]
[1752349746248,3.66,160.62,160.59,6.2247]
[1752349746450,3.66,160.62,160.59,9.7247]
[1752349746652,3.66,160.62,160.59,3.5]
[1752349747550,3.66,160.62,160.6,3.5]
[1752349748053,3.66,160.62,160.59,6.2245]